Cogmind - Beta 13 *** ADVENTURER MODE // 2024.07.11 @ 10:31:05 // Winter2019/RPGLIKE Player: Kiks Result: Destroyed by H-66 Slayer with Gauss Rifle Performance ------------- Evolutions (4) 2000 Regions Visited (4) 800 Robots Destroyed (70) 350 Value Destroyed (1946) 1946 Prototype IDs (23) 460 Alien Tech Used (0) 0 Bonus (-16) -16 TOTAL SCORE: 5540 Bonus ------- Friendly Fire -16 Cogmind --------- Core Integrity 0/600 Matter 292/300 Energy 297/297 System Corruption 0% Temperature Cool (0) Movement Core (350) Ox6 Location -6/Factory Parts ------- > --- POWER (1) -------- Deuterium-Ion Engine > --- PROPULSION (2) --- (None) > --- UTILITY (4) ------ Armored Scrap Engine Signal Interpreter Improved Terrain Scanner > --- WEAPON (3) ------- Energy Particle Construct/C Shotgun EM Lightning Construct/G Energy Plasma Construct/C > --- INVENTORY (4) ---- Flightbrick Peak State ------------ > --- POWER ------------ Deuterium-Ion Engine > --- PROPULSION ------- Wheeled Compact Exoskeleton > --- UTILITY ---------- Armored Scrap Engine Signal Interpreter Improved Terrain Scanner > --- WEAPON ----------- Energy Particle Construct/C Shotgun EM Lightning Construct/G Energy Plasma Construct/C > --- INVENTORY -------- Flightbrick [Rating: 47] Favorites ----------- Power Subdweller Power Source Engine Subdweller Power Source Propulsion Carbon-fiber Leg Leg Carbon-fiber Leg Wheel Constructs Utility Improved Terrain Scanner Device Improved Terrain Scanner Processor Signal Interpreter Protection Scrap Shield Weapon Subdweller Machine Gun Energy Gun Particle Gun Energy Cannon Constructs Ballistic Gun Subdweller Machine Gun Special Weapon Welding Torch Build | -11 -10 -10 -8 -6 ------- Run | Yrd Mat Sub Rec Fac Slots Evolved 6 | 3 . 1 2 . Power . | . . . . . Propulsion 1 | 1 . . . . Utility 3 | 1 . . 2 . Weapon 2 | 1 . 1 . . Parts Attached 33 | 7 6 15 4 1 Power 5 | 1 . 2 2 . Engine 5 | 1 . 2 2 . Core . | . . . . . Reactor . | . . . . . Propulsion 9 | 2 2 5 . . Treads . | . . . . . Leg 7 | 2 2 3 . . Wheel 2 | . . 2 . . Hover . | . . . . . Flight . | . . . . . Utility 8 | 2 1 3 1 1 Device 5 | 2 . 1 1 1 Storage . | . . . . . Processor 2 | . 1 1 . . Hackware . | . . . . . Protection 1 | . . 1 . . Artifact . | . . . . . Weapon 11 | 2 3 5 1 . Energy Gun 2 | . 2 . . . Energy Cannon . | . . . . . Ballistic Gun 8 | 2 1 5 . . Ballistic Cannon . | . . . . . Launcher . | . . . . . Special Weapon 1 | . . . 1 . Impact Weapon . | . . . . . Slashing Weapon . | . . . . . Piercing Weapon . | . . . . . Special Melee Weapon . | . . . . . Unidentified Prototypes . | . . . . . Parts Lost 2 | . . . . 2 Power . | . . . . . Propulsion 2 | . . . . 2 Utility . | . . . . . Weapon . | . . . . . Highest Loss Streak 1 | . . . . 1 To Critical Strikes . | . . . . . Average Slot Usage (%) 90 | . 98 93 79 78 Engine 12 | . 14 13 7 10 Leg 21 | . 26 26 16 1 Wheel 1 | . . . . 5 Device 15 | . 23 9 19 19 Processor 7 | . 4 7 10 10 Protection 1 | . . 3 . . Energy Gun 5 | . 16 1 . 6 Energy Cannon 2 | . . . 1 15 Ballistic Gun 21 | . 11 29 23 8 Naked Turns . | . . . . . Heaviest Build 31 | 10 13 31 21 21 Greatest Support 52 | 20 20 40 30 52 Greatest Overweight (x) 6 | 1 1 2 1 6 Average Overweight (x) . | . . . . . Largest Inventory Capacity 4 | 4 4 4 4 4 Average Capacity 4 | 4 4 4 4 4 Most Carried 4 | . 4 4 4 4 Average Carried 3 | . 3 3 3 4 Final Capacity 4 | 4 4 4 4 4 Final Carried 4 | . 4 4 4 4 Scrap Engine Consumption 74 | . . . 48 26 Constructs Created 5 | . . . 5 . Constructs Modified 15 | . . . 5 10 Class Distribution -------------------- 30% | Mutant 22% | Scavenger-Gunner 18% | Scavenger-Mutant 16% | Construct 13% | Subdweller-Mutant Dominant Class ---------------- Mutant | -10/Materials Scavenger-Mutant | -10/Subcaves Scavenger-Gunner | -8/Recycling Construct | -6/Factory Resources | -11 -10 -10 -8 -6 ----------- Run | Yrd Mat Sub Rec Fac Matter Collected 1375 | 316 186 594 160 119 Remotely . | . . . . . Salvage Created 3238 | 204 522 542 973 997 Parts 166 | 15 33 39 35 44 Haulers Intercepted 2 | . 2 . . . Recyclers Shooed 5 | . 1 . 2 2 Parts Field Recycled . | . . . . . Retrieved Matter . | . . . . . Parts Self-Destructed 16 | . . 16 . . Prevented . | . . . . . Kills | -11 -10 -10 -8 -6 ------- Run | Yrd Mat Sub Rec Fac Combat Hostiles Destroyed 39 | . 10 13 3 13 Guns 26 | . 9 13 2 2 Cannons 8 | . . . 1 7 AOE 4 | . . . . 4 Classes Destroyed 15 | 3 4 3 1 4 Worker 6 | 2 1 . . 3 Builder 4 | . 1 . 2 1 Tunneler 3 | 3 . . . . Hauler 2 | . 2 . . . Recycler 11 | 1 . . 8 2 Turret 2 | . . 2 . . Watcher 3 | . 2 . . 1 Swarmer 3 | . . 3 . . Grunt 16 | . 10 3 . 3 Sentry 6 | . . . 3 3 Specialist 2 | . . . . 2 Hunter 3 | . . . . 3 Programmer 1 | . . . . 1 Heavy 1 | . . . . 1 Subdweller 7 | . . 7 . . Best Kill Streak 10 | 4 2 3 4 10 Combat Bots Only 5 | . 2 3 1 5 Max Kills in Single Turn 4 | 1 1 1 2 4 Gunslinging . | . . . . . Exploded 2 | . . . . 2 Melee . | . . . . . Uniques/NPCs Destroyed . | . . . . . Combat | -11 -10 -10 -8 -6 -------- Run | Yrd Mat Sub Rec Fac Hostile Shots Fired 400 | . 77 154 8 161 Missed 134 | . 16 52 1 65 Damage Taken 2931 | . 596 1058 81 1196 Core 2325 | . 485 814 67 959 Absorbed by Shields . | . . . . . Redirected to Core 1801 | . 353 590 46 812 Ignored by Resistances 864 | . 181 305 23 355 Regen/Repaired (Parts) 51 | . . . 9 42 Core Remaining (%) 96 | 100 . . 93 . Volleys Fired 220 | 13 51 86 29 41 Largest 3 | 2 2 2 3 3 Hottest 148 | 40 130 130 148 148 Shots Fired 448 | 26 102 163 53 104 Gun 382 | 26 102 163 44 47 Cannon 59 | . . . 2 57 Launcher . | . . . . . Special 7 | . . . 7 . Kinetic 307 | 26 60 155 32 34 Thermal 122 | . 42 8 9 63 Explosive . | . . . . . Electromagnetic 19 | . . . 12 7 Robot Hit Streak 31 | 22 31 23 17 20 Robot Miss Streak 3 | . 3 3 3 2 Penetration Max . | . . . . . Secondary Targets 8 | . 2 5 . 1 Max Gunslinging Chain 1 | . 1 1 . 1 Shots Hit Robots 300 | 22 77 80 35 86 Core Hits 122 | 8 28 29 19 38 Critical Kills 1 | . . 1 . . Critical Parts Destroyed 2 | . . 1 . 1 Critical Strikes 4 | . 1 2 . 1 Burn 1 | . 1 . . . Destroy 3 | . . 2 . 1 Melee Attacks . | . . . . . Impact . | . . . . . Slashing . | . . . . . Piercing . | . . . . . Sneak Attacks . | . . . . . Combat Hostiles . | . . . . . Follow-up Attacks . | . . . . . Damage Inflicted 6237 | 233 930 1577 715 2782 Guns 4296 | 233 930 1577 676 880 Cannons 1143 | . . . 19 1124 Explosions 778 | . . . . 778 Melee . | . . . . . Ramming . | . . . . . Kinetic 3259 | 233 494 1474 442 616 Thermal 2570 | . 436 103 39 1992 Explosive . | . . . . . Electromagnetic 408 | . . . 234 174 Impact . | . . . . . Slashing . | . . . . . Piercing . | . . . . . Highest Corruption . | . . . . . Average Corruption . | . . . . . Corruption Purged . | . . . . . Corruption Blocked . | . . . . . Overload Shots . | . . . . . Overflow Damage 23 | . . . . 23 Projectiles 19 | . . . . 19 Explosions 4 | . . . . 4 Melee . | . . . . . Knockbacks . | . . . . . Impact . | . . . . . Kinetic . | . . . . . Secondary . | . . . . . Self-Inflicted Damage . | . . . . . Shots . | . . . . . Rammed . | . . . . . Targets Rammed . | . . . . . Kicked . | . . . . . Crushed . | . . . . . Highest Temperature 412 | . 412 . 15 . Average Temperature 128 | . 131 . 9 . Received Heat Transfer 984 | . 471 297 81 135 Effects 1 | . 1 . . . Short Circuit 1 | . 1 . . . Siege Activations . | . . . . . Robots Corrupted . | . . . . . Combat Hostiles . | . . . . . Parts Fried 3 | . . . 2 1 Impact Corruptions . | . . . . . Robots Melted 1 | . 1 . . . Combat Hostiles 1 | . 1 . . . Parts Melted 2 | . 1 . . 1 Heat Transferred 3766 | . 1110 259 175 2222 Parts Sabotaged . | . . . . . Parts Stolen . | . . . . . Parts Stripped . | . . . . . Power Chain Reactions 3 | . . . . 3 Alert | -11 -10 -10 -8 -6 ------- Run | Yrd Mat Sub Rec Fac Peak Influence 389 | 30 210 . 94 389 Initial 16 | . 16 . . . Average 71 | 9 91 . 35 90 Maximum Alert Level 1 | . 1 . . 1 Low Security (%) 89 | 100 88 . 100 79 Level 1 10 | . 11 . . 20 Level 2 . | . . . . . Level 3 . | . . . . . Level 4 . | . . . . . Level 5 . | . . . . . High Security . | . . . . . Max Security . | . . . . . Squads Dispatched 4 | . 2 . . 2 Investigation 2 | . 2 . . . Extermination . | . . . . . Reinforcement 2 | . . . . 2 Assault . | . . . . . Garrison . | . . . . . Intercept . | . . . . . Searches Triggered . | . . . . . Construction Impeded . | . . . . . Haulers Reinforced . | . . . . . Active Scanning Responses . | . . . . . Cargo Convoy Interrupts . | . . . . . Stealth | -11 -10 -10 -8 -6 --------- Run | Yrd Mat Sub Rec Fac Distress Signals 3 | . . . . 3 Communications Jammed . | . . . . . Distress Signals . | . . . . . Times Spotted 84 | . 16 46 3 19 Peak Tracking Total 8 | . 4 8 1 7 Tactical Retreats 5 | . 1 4 . . Traps | -11 -10 -10 -8 -6 ------- Run | Yrd Mat Sub Rec Fac Traps Triggered 4 | . 2 1 . 1 Indirectly . | . . . . . Trap Hack Attempts . | . . . . . Triggered . | . . . . . Disarmed . | . . . . . Reprogrammed . | . . . . . Reused . | . . . . . Traps Extracted . | . . . . . Installed 1 | . . 1 . . Triggered . | . . . . . Machines | -11 -10 -10 -8 -6 ---------- Run | Yrd Mat Sub Rec Fac Machines Disabled 3 | . . 3 . . Max in Single Turn 1 | . . 1 . . Garrison Access 1 | . . . . 1 Machines Repaired . | . . . . . Machines Dismantled . | . . . . . Machines Sabotaged . | . . . . . Overloaded Fab Kills . | . . . . . Hacking | -11 -10 -10 -8 -6 --------- Run | Yrd Mat Sub Rec Fac Machines Accessed 21 | . 8 1 7 5 Terminals 16 | . 8 . 5 3 Fabricators . | . . . . . Repair Stations . | . . . . . Recycling Units 2 | . . . 2 . Scanalyzers 1 | . . . . 1 Garrison Access 1 | . . . . 1 Total Hacks 71 | . 32 9 20 10 Successful 48 | . 22 9 10 7 Failed 23 | . 10 . 10 3 Catastrophic 5 | . 2 . 2 1 Database Lockouts . | . . . . . Manual 33 | . 19 . 12 2 Terminals 54 | . 32 . 16 6 Fabricators . | . . . . . Repair Stations . | . . . . . Recycling Units 4 | . . . 4 . Scanalyzers 2 | . . . . 2 Garrison Access 2 | . . . . 2 Terminal Hacks 28 | . 14 9 2 3 Record 10 | . 2 8 . . Prototype ID Bank 4 | . 2 . 1 1 Open Door 1 | . . . . 1 Level Access Points 1 | . 1 . . . Branch Access Points 2 | . 2 . . . Emergency Access Points 1 | . 1 . . . Recycling Unit Index 1 | . 1 . . . Alert Level 1 | . 1 . . . Maintenance Status 1 | . . . . 1 Surveillance Status 1 | . 1 . . . Patrol Status 1 | . . . 1 . Transport Status 1 | . 1 . . . Investigation Status 1 | . 1 . . . Reinforcement Status 1 | . 1 . . . Derelict Proto ID Bank 1 | . . 1 . . Fabricator Hacks . | . . . . . Repair Station Hacks . | . . . . . Recycling Unit Hacks 4 | . . . 4 . Report Inventory 1 | . . . 1 . Retrieve Matter 1 | . . . 1 . Retrieve Components 2 | . . . 2 . Scanalyzer 1 | . . . . 1 Insert Component 1 | . . . . 1 Garrison Access Hacks 1 | . . . . 1 Seal Access 1 | . . . . 1 Unauthorized Hacks 14 | . 8 . 4 2 Terminals 14 | . 8 . 4 2 Botnet 14 | . 8 . 4 2 Fabricators . | . . . . . Repair Stations . | . . . . . Recycling Units . | . . . . . Scanalyzers . | . . . . . Garrison Access . | . . . . . Data Cores Recovered . | . . . . . Used . | . . . . . Hacking Detections 14 | . 7 . 5 2 Full Trace Events 3 | . 3 . . . Feedback Events . | . . . . . Feedback Blocked . | . . . . . Robot Schematics Acquired . | . . . . . Robots Built . | . . . . . Authchips . | . . . . . Time . | . . . . . Total Robot Build Rating . | . . . . . Part Schematics Acquired . | . . . . . Parts Built . | . . . . . Authchips . | . . . . . Time . | . . . . . Total Part Build Rating . | . . . . . Parts Repaired . | . . . . . Time . | . . . . . Parts Recycled . | . . . . . Recycled Matter . | . . . . . Retrieved Matter . | . . . . . Retrieved Components 7 | . . . 7 . Parts Scanalyzed . | . . . . . Part Schematics Acquired . | . . . . . Parts Damaged . | . . . . . Bothacking | -11 -10 -10 -8 -6 ------------ Run | Yrd Mat Sub Rec Fac Used RIF Installer . | . . . . . Robots Hacked . | . . . . . Non-combat . | . . . . . Combat . | . . . . . Robot Hacks Applied . | . . . . . Relay Couplers Released . | . . . . . Fabnet Peak Effective % . | . . . . . Robots Rewired . | . . . . . Allies Hacked . | . . . . . Hacks Repelled . | . . . . . Allies | -11 -10 -10 -8 -6 -------- Run | Yrd Mat Sub Rec Fac Total Allies . | . . . . . Largest Group . | . . . . . Highest-Rated Group . | . . . . . Highest-Rated Ally . | . . . . . Total Orders . | . . . . . Ally Attacks . | . . . . . Total Damage . | . . . . . Kills . | . . . . . Allies Corrupted . | . . . . . Allies Melted . | . . . . . Intel | -11 -10 -10 -8 -6 ------- Run | Yrd Mat Sub Rec Fac Robot Analysis Total . | . . . . . Derelict Logs Recovered 1 | . . 1 . . Drone Launches . | . . . . . Drone Recoveries . | . . . . . Exploration | -11 -10 -10 -8 -6 ------------- Run | Yrd Mat Sub Rec Fac Turns Passed 5373 | 115 1184 2499 822 753 Spaces Moved 3637 | 62 778 1707 589 501 Core 65 | 10 . . 38 17 Treads 86 | . . . . 86 Legs 3119 | 52 778 1662 551 76 Wheels 367 | . . 45 . 322 Hover . | . . . . . Flight . | . . . . . Fastest Speed 50 | 50 120 110 50 93 Average Speed 123 | 111 125 125 119 118 Slowest Speed 350 | 120 190 260 162 350 Overloaded Moves . | . . . . . Propulsion Burnouts . | . . . . . Robots Hopped . | . . . . . Cave-ins Triggered . | . . . . . Exploration Rate (%) 54 | 4 93 78 83 13 Regions Visited 4 Branch Regions 2 Pre-discovered Areas 2 | . . 2 . . Known Exits Taken 3 | . 1 1 1 . Unknown Exits Taken 1 | 1 . . . . Scrap Searched 11 | . . 11 . . Spaces Dug . | . . . . . Terrain Destroyed 14 | . . . 2 12 Melee . | . . . . . Projectile 2 | . . . 2 . AOE 12 | . . . . 12 Terrain Rammed . | . . . . . Walls Destroyed . | . . . . . Machines Disabled . | . . . . . Actions | -11 -10 -10 -8 -6 --------- Run | Yrd Mat Sub Rec Fac Total 4127 | 81 891 1915 666 574 Wait 95 | . 33 23 26 13 Move 3633 | 61 777 1706 588 501 Hop . | . . . . . Pick Up 17 | . 5 11 1 . Fast Attach 26 | 7 5 9 4 1 Attach 4 | . . 4 . . Detach 1 | . . 1 . . Swap 3 | . 1 2 . . Drop 37 | . 4 23 10 . Fire 220 | 13 51 86 29 41 Melee . | . . . . . Ram . | . . . . . Kick . | . . . . . Crush . | . . . . . Escape Stasis . | . . . . . Rewire 2 | . . . 2 . Trap 1 | . . 1 . . Miscellaneous 88 | . 15 49 6 18 Route ------- -11/Scrapyard -10/Materials (discovered 5 exits: *Mat x3 / *Min / *Sub) -10/Subcaves (discovered 3 exits: *Mat x2 / *Rec) -8/Recycling -6/Factory (discovered 1 exit: *Ext) History --------- Turn | Location | Event 1 | -11/Scrapyard | Upgraded with Propulsion slot (x1) 1 | -11/Scrapyard | Upgraded with Utility slot (x1) 1 | -11/Scrapyard | Upgraded with Weapon slot (x1) 3 | -11/Scrapyard | Discovered new exit (range 16) 116 | -11/Scrapyard | Entered Materials 263 | -10/Materials | Identified exit to Mines 263 | -10/Materials | Identified exit to Materials 307 | -10/Materials | Build established: Mutant 1140 | -10/Materials | Reached level 2 1273 | -10/Materials | Discovered new exit (range 8) 1299 | -10/Materials | Identified exit to Subcaves 1300 | -10/Materials | Entered Subcaves 1301 | -10/Subcaves | Discovered new exit (range 9) 1323 | -10/Subcaves | Learned location of Zion (-6) 1378 | -10/Subcaves | Ambushed by swarm of Subdwellers 1385 | -10/Subcaves | Core integrity fell below 50% 1722 | -10/Subcaves | Build established: Subdweller-Mutant 1868 | -10/Subcaves | A swath of the cavern ceiling suddenly collapsed 2333 | -10/Subcaves | Discovered new exit (range 6) 2433 | -10/Subcaves | A swath of the cavern ceiling suddenly collapsed 2445 | -10/Subcaves | Build established: Scavenger-Mutant 2460 | -10/Subcaves | Reached level 3 2595 | -10/Subcaves | Met a Zionite searching for "candidates" 2653 | -10/Subcaves | Shifting Twisted Machinery released Mak. Shrapnel Gun 2755 | -10/Subcaves | Shifting Twisted Machinery released Multitool 2757 | -10/Subcaves | Shifting Twisted Machinery released Flamer 2939 | -10/Subcaves | Identified exit to Recycling 2977 | -10/Subcaves | Identified exit to Materials 3100 | -10/Subcaves | Visited 4L-MR0's lab 3129 | -10/Subcaves | Upgraded with Weapon slot (x1) 3131 | -10/Subcaves | Found Flightbrick 3416 | -10/Subcaves | Build established: Scavenger-Gunner 3602 | -10/Subcaves | Discovered exit to Materials (range 14) 3799 | -10/Subcaves | Entered Recycling 3801 | -8/Recycling | Reached level 4 3801 | -8/Recycling | Reached level 5 3862 | -8/Recycling | Upgraded with Utility slot (x2) 3865 | -8/Recycling | Found Scrap Engine 4469 | -8/Recycling | Discovered new exit (range 15) 4559 | -8/Recycling | Identified exit to Factory 4621 | -8/Recycling | Entered Factory 4623 | -6/Factory | Reached level 6 4623 | -6/Factory | Reached level 7 4623 | -6/Factory | Reached level 8 4623 | -6/Factory | Reached level 9 4623 | -6/Factory | Reached level 10 4623 | -6/Factory | Reached level 11 4623 | -6/Factory | Reached level 12 4623 | -6/Factory | Reached level 13 4785 | -6/Factory | Build established: Construct 4979 | -6/Factory | Discovered new exit (range 6) 4982 | -6/Factory | Identified exit to Extension 5112 | -6/Factory | Reached level 14 5217 | -6/Factory | Core integrity fell below 50% 5239 | -6/Factory | Core integrity fell below 20% 5365 | -6/Factory | Reached level 15 5374 | -6/Factory | Destroyed by H-66 Slayer with Gauss Rifle Last Messages --------------- 05312_ U-05 Engineer builds a Wall. 05313_ Arm. Scrap Engine consumes Angular Momentum Engine. 05317_ Arm. Scrap Engine consumes Hvy. Laser. 05326_ K-01 Serf collects debris. 05330_ Acquired 3 matter. 05332_ K-01 Serf collects debris. 05334_ Arm. Scrap Engine consumes Flexi-carbon Leg. 05336_ K-01 Serf collects debris. 05345_ Arm. Scrap Engine consumes Wheel. 05349_ K-01 Serf collects debris. 05352_ Penetrated by Slug. 05356_ K-01 Serf collects debris. 05362_ Destroyed Phase Shifter. 05362_ K-01 Serf collects debris. 05362_ Penetrated by Slug. 05365_ Reached level 15. 05365_ Targeting Computer fried. 05365_ H-66 Slayer destroyed. 05365_ Penetrated by Slug. Map ----- +----------------------------------------------------+ | ??????????????????????""? # ?""""# # # | | ????????????????? ??? """ # # """ # | | ???????????????? "?" """ + """"# """ # | | ??????????????? # """"# """ # | | ????????????????? # """"# # | | ?????????????##?####### ## """"####+##### | | ??????????????######### ## ### # | | ??????????????#####?### ############# # | | ????????????? ### ### """ """ # # | | ??????????? ### ### """ """ # #####+## | | ?????????? ?### ### """ """ # # | | ???????????" ### ### # # | | ?????????? " # ! # / # | | ?????????? " # u #% # # | | ?????????? " # # # # ! | | ?????????# " + %+ # # ! | | ????????## " # %########### # | | ????????? " # k ## # # ! | | ????????## " # % ## """ # # """ | | ???????? # " ### % #### """ # #[%[""" | | ???????#?# ### %# ## """ # # """ | | ????????## ###!% #### + + | | ????????## ### #### """ # ######## | | ?????????############## !#### """ # # ? | | ?????????#?############ !#### """ # # | | ?????????############## @#### # # "? ?" | | ????????############## ############ + ""? ?" | | ????????#### """T""" # ##### ? ??? "" | | ?????????### = + %% ?? "?" ?" | | ???????##### % # #####] """ ?????"" "" | | ????????#### # % %##### """ ?????? ??? | | ?????????#?### ######### ####### """ ????#????? | | ?????????######## # # # ?????????? | | ?????????######## + + # ??????????? | | ??????????####### # # # ??????????? | | ??????????? ### # # # ???????????? | | ??????????? ### # ####### ???????????? | | ???????????? ### #%########+###????????????? | | ?????????? ? ##########%### "T" ?????????????? | | ????????????? ########## ### """ ????????????? | | ??????????????? ### ### "???????????????? | | ????????????????? # # ?????????????????? | | ??????????????? ?? # ? # ?? ????????????????? | | ????????????????? ???+??T????"???????????????????? | | ??????????????????? ?????????????????????????????? | | ?????????????????????????????????????????????????? | | ?????????????????????????????????????????????????? | | ?????????????????????????????????????????????????? | | ?????????????????????????????????????????????????? | | ?????????????????????????????????????????????????? | +----------------------------------------------------+ Best States ------------- Heat Dissipation 67 Energy Generation 15 Energy Capacity 342 Matter Stores 300 Matter Capacity 300 Sight Range 16 Terrain Scan Range 16 Terrain Scan Density 510 Armor Coverage 800 Resistance: KI 20 Resistance: TH 20 Resistance: EX 20 Resistance: EM 20 Resistance: I 20 Resistance: S 20 Resistance: P 20 Evasion (%) 55 Recoil Reduction 2 Offensive Hacking 10 Item Schematics ----------------- None Robot Schematics ------------------ None Fabricated ------------ Nothing Alien Tech Used ----------------- None Achievements -------------- None Challenges ------------ None RPGLIKE | -11 -10 -10 -8 -6 --------- Run | Yrd Mat Sub Rec Fac Levels Raised 14 | . 1 1 2 10 XP Earned 25026 | 4000 1555 1850 3619 14002 XP Spent 8820 | 4000 1420 1500 1900 . Upgrades 24 | 7 12 3 2 . Propulsion Slot 1 | 1 . . . . Utility Slot 3 | 1 . . 2 . Weapon Slot 2 | 1 . 1 . . Heat Dissipation 7 | . 7 . . . Inventory Capacity 4 | 4 . . . . Terrain Scan Density 5 | . 5 . . . KI Damage % 2 | . . 2 . . Protomatter Created 640 | . 145 217 48 230 Integrity Restored 1900 | . 348 1010 144 398 Core 1722 | . 348 832 144 398 Parts 178 | . . 178 . . Protomatter Decayed 167 | . 29 50 . 88 Game ------ Seed AntimissileFlightRipper Manual? 0 Play Time 00:44:26 Cumulative 133.0 hours Start 2024.07.11 @ 09:48:42 End 2024.07.11 @ 10:31:05 Sessions 1 Manual Loads 0 Difficulty Adventurer Special Mode Winter2019/RPGLIKE Game No. 95 Rogue 46 Adventurer 15 Explorer 34 Win Type - Total 19 Types 10/0/4/4/1/0/0/0/0 Lore% 72 Gallery% 70 Achievement% 77 Wizard Run 0 Options --------- Layout 2 ASCII 0 Keyboard 0 Movement Mouse Keybinds 0 Fullscreen 1 Font 16/SmallcapsGlow Map View 55x47 Zoom Use 0% Tactical HUD 1 Map Filters NONE Filters NONE Steam 1 RUN: 7ee25633-c626-47a6-9687-cdc61ed4f5aa